[Event "Titled Tuesday Blitz February 22 Early 2022"]
[White "Zemerov, Vladimir"]
[Black "wisdomboy"]
[WhiteFideId "4111583"]
[WhiteElo "2277"]
[BlackElo "2440"]
[Result "1/2-1/2"]
[Round "10"]
[TimeControl "180+1"]
[Date "2022.02.22"]
[WhiteClock "0:00:35"]
[BlackClock "0:00:20"]

1. d4 {[%clk 0:02:54]}  Nf6 {[%clk 0:02:59]} 2. c4 {[%clk 0:02:54]}  e6 {[%clk 0:02:59]} 3. Nc3 {[%clk 0:02:54]}  Bb4 {[%clk 0:02:58]} 4. Qb3 {[%clk 0:02:54]}  c5 {[%clk 0:02:57]} 5. e3 {[%clk 0:02:52]}  O-O {[%clk 0:02:56]} 6. a3 {[%clk 0:02:52]}  Bxc3+ {[%clk 0:02:56]} 7. Qxc3 {[%clk 0:02:52]}  b6 {[%clk 0:02:56]} 8. Bd3 {[%clk 0:02:51]}  Bb7 {[%clk 0:02:56]} 9. Nf3 {[%clk 0:02:51]}  Ne4 {[%clk 0:02:54]} 10. Qc2 {[%clk 0:02:49]}  f5 {[%clk 0:02:54]} 11. O-O {[%clk 0:02:47]}  d6 {[%clk 0:02:51]} 12. b4 {[%clk 0:02:45]}  Nd7 {[%clk 0:02:51]} 13. Bb2 {[%clk 0:02:45]}  Ndf6 {[%clk 0:02:48]} 14. Rad1 {[%clk 0:02:42]}  Qe7 {[%clk 0:02:45]} 15. dxc5 {[%clk 0:02:40]}  dxc5 {[%clk 0:02:45]} 16. Nd2 {[%clk 0:02:35]}  cxb4 {[%clk 0:02:39]} 17. axb4 {[%clk 0:02:31]}  Qxb4 {[%clk 0:02:38]} 18. f3 {[%clk 0:02:23]}  Nxd2 {[%clk 0:02:32]} 19. Rxd2 {[%clk 0:02:23]}  a5 {[%clk 0:02:27]} 20. Rb1 {[%clk 0:02:19]}  Qe7 {[%clk 0:02:19]} 21. Bd4 {[%clk 0:02:11]}  e5 {[%clk 0:02:11]} 22. Bxb6 {[%clk 0:02:10]}  e4 {[%clk 0:02:11]} 23. fxe4 {[%clk 0:02:03]}  Nxe4 {[%clk 0:02:11]} 24. Re2 {[%clk 0:02:00]}  a4 {[%clk 0:02:07]} 25. Bd4 {[%clk 0:02:00]}  a3 {[%clk 0:02:03]} 26. c5 {[%clk 0:01:58]}  Bd5 {[%clk 0:01:49]} 27. Bc4 {[%clk 0:01:54]}  Qe6 {[%clk 0:01:48]} 28. Bxd5 {[%clk 0:01:52]}  Qxd5 {[%clk 0:01:49]} 29. Ra1 {[%clk 0:01:51]}  Rfc8 {[%clk 0:01:37]} 30. Qa2 {[%clk 0:01:50]}  Qxa2 {[%clk 0:01:23]} 31. Rexa2 {[%clk 0:01:50]}  Nxc5 {[%clk 0:01:23]} 32. Rxa3 {[%clk 0:01:50]}  Rxa3 {[%clk 0:01:14]} 33. Rxa3 {[%clk 0:01:49]}  Ne6 {[%clk 0:01:15]} 34. Be5 {[%clk 0:01:42]}  Kf7 {[%clk 0:01:10]} 35. Ra7+ {[%clk 0:01:40]}  Kg6 {[%clk 0:01:10]} 36. h3 {[%clk 0:01:39]}  Rc5 {[%clk 0:01:02]} 37. Bd6 {[%clk 0:01:31]}  Rc3 {[%clk 0:00:54]} 38. Bf4 {[%clk 0:01:29]}  Rc4 {[%clk 0:00:49]} 39. Ra6 {[%clk 0:01:28]}  Kf7 {[%clk 0:00:48]} 40. Be5 {[%clk 0:01:26]}  Re4 {[%clk 0:00:47]} 41. Ra7+ {[%clk 0:01:20]}  Kg6 {[%clk 0:00:47]} 42. Bf4 {[%clk 0:01:16]}  Nxf4 {[%clk 0:00:47]} 43. exf4 {[%clk 0:01:16]}  Rxf4 {[%clk 0:00:47]} 44. Ra6+ {[%clk 0:01:16]}  Kg5 {[%clk 0:00:47]} 45. Kh2 {[%clk 0:01:15]}  Rb4 {[%clk 0:00:45]} 46. Ra5 {[%clk 0:01:14]}  g6 {[%clk 0:00:45]} 47. Rc5 {[%clk 0:01:13]}  h5 {[%clk 0:00:45]} 48. Rc3 {[%clk 0:01:13]}  Rb2 {[%clk 0:00:45]} 49. Rg3+ {[%clk 0:01:12]}  Kf6 {[%clk 0:00:41]} 50. Rc3 {[%clk 0:01:12]}  h4 {[%clk 0:00:41]} 51. Rc6+ {[%clk 0:01:11]}  Kg5 {[%clk 0:00:41]} 52. Rc4 {[%clk 0:01:11]}  Rd2 {[%clk 0:00:38]} 53. Rb4 {[%clk 0:01:11]}  Kh5 {[%clk 0:00:35]} 54. Ra4 {[%clk 0:01:11]}  g5 {[%clk 0:00:33]} 55. Ra5 {[%clk 0:01:08]}  f4 {[%clk 0:00:33]} 56. Ra3 {[%clk 0:01:07]}  Kg6 {[%clk 0:00:33]} 57. Ra6+ {[%clk 0:01:05]}  Kf5 {[%clk 0:00:33]} 58. Ra5+ {[%clk 0:01:05]}  Ke4 {[%clk 0:00:33]} 59. Ra4+ {[%clk 0:01:04]}  Ke3 {[%clk 0:00:32]} 60. Ra3+ {[%clk 0:01:03]}  Ke4 {[%clk 0:00:27]} 61. Ra4+ {[%clk 0:01:02]}  Rd4 {[%clk 0:00:28]} 62. Ra2 {[%clk 0:01:01]}  Rd5 {[%clk 0:00:25]} 63. Re2+ {[%clk 0:01:00]}  Kf5 {[%clk 0:00:26]} 64. Rf2 {[%clk 0:01:00]}  Ra5 {[%clk 0:00:24]} 65. Re2 {[%clk 0:01:00]}  g4 {[%clk 0:00:24]} 66. hxg4+ {[%clk 0:00:59]}  Kxg4 {[%clk 0:00:25]} 67. Rf2 {[%clk 0:00:59]}  Ra3 {[%clk 0:00:25]} 68. Rb2 {[%clk 0:00:58]}  Rc3 {[%clk 0:00:25]} 69. Ra2 {[%clk 0:00:57]}  h3 {[%clk 0:00:23]} 70. gxh3+ {[%clk 0:00:57]}  Rxh3+ {[%clk 0:00:24]} 71. Kg2 {[%clk 0:00:57]}  Rg3+ {[%clk 0:00:24]} 72. Kf1 {[%clk 0:00:57]}  Re3 {[%clk 0:00:23]} 73. Rg2+ {[%clk 0:00:56]}  Kf3 {[%clk 0:00:23]} 74. Rf2+ {[%clk 0:00:55]}  Ke4 {[%clk 0:00:23]} 75. Ra2 {[%clk 0:00:55]}  Rb3 {[%clk 0:00:23]} 76. Kf2 {[%clk 0:00:55]}  Rf3+ {[%clk 0:00:23]} 77. Ke2 {[%clk 0:00:54]}  Rh3 {[%clk 0:00:23]} 78. Ra4+ {[%clk 0:00:53]}  Kf5 {[%clk 0:00:23]} 79. Kf2 {[%clk 0:00:53]}  Kg4 {[%clk 0:00:23]} 80. Ra8 {[%clk 0:00:48]}  Rh2+ {[%clk 0:00:23]} 81. Kg1 {[%clk 0:00:48]}  Rb2 {[%clk 0:00:24]} 82. Ra3 {[%clk 0:00:47]}  Rb1+ {[%clk 0:00:23]} 83. Kf2 {[%clk 0:00:43]}  Rb2+ {[%clk 0:00:23]} 84. Kg1 {[%clk 0:00:42]}  Re2 {[%clk 0:00:23]} 85. Kf1 {[%clk 0:00:42]}  Rc2 {[%clk 0:00:23]} 86. Kg1 {[%clk 0:00:42]}  Rd2 {[%clk 0:00:19]} 87. Rb3 {[%clk 0:00:40]}  Rd1+ {[%clk 0:00:18]} 88. Kf2 {[%clk 0:00:39]}  Rd2+ {[%clk 0:00:19]} 89. Kg1 {[%clk 0:00:38]}  Ra2 {[%clk 0:00:20]} 90. Rc3 {[%clk 0:00:38]}  f3 {[%clk 0:00:20]} 91. Rc7 {[%clk 0:00:37]}  Ra1+ {[%clk 0:00:21]} 92. Kf2 {[%clk 0:00:36]}  Ra2+ {[%clk 0:00:21]} 93. Kg1 {[%clk 0:00:37]}  Ra4 {[%clk 0:00:21]} 94. Kf2 {[%clk 0:00:35]}  Ra2+ {[%clk 0:00:20]} 95. Kg1 {[%clk 0:00:35]} 1/2-1/2


[Site "https://www.chess.com"]

[Event "Titled Tuesday Blitz February 22 Early 2022"]
[White "Zhigalko, Sergei"]
[Black "Mohammad Fahad, Rahman"]
[WhiteFideId "13502956"]
[BlackFideId "10207791"]
[WhiteElo "2662"]
[BlackElo "2323"]
[Result "1-0"]
[Round "10"]
[TimeControl "180+1"]
[Date "2022.02.22"]
[WhiteClock "0:00:07"]
[BlackClock "0:00:06"]

1. e4 {[%clk 0:03:00]}  e5 {[%clk 0:02:59]} 2. Nf3 {[%clk 0:03:00]}  Nc6 {[%clk 0:02:59]} 3. Bc4 {[%clk 0:03:00]}  Bc5 {[%clk 0:02:59]} 4. b4 {[%clk 0:03:00]}  Bxb4 {[%clk 0:02:58]} 5. c3 {[%clk 0:03:01]}  Ba5 {[%clk 0:02:57]} 6. d4 {[%clk 0:03:00]}  exd4 {[%clk 0:02:43]} 7. O-O {[%clk 0:03:00]}  d6 {[%clk 0:02:43]} 8. Qb3 {[%clk 0:02:47]}  Qe7 {[%clk 0:02:29]} 9. cxd4 {[%clk 0:02:39]}  Bb6 {[%clk 0:02:27]} 10. Nc3 {[%clk 0:02:28]}  Na5 {[%clk 0:02:00]} 11. Qa4+ {[%clk 0:02:24]}  Bd7 {[%clk 0:02:00]} 12. Bb5 {[%clk 0:02:23]}  c6 {[%clk 0:01:56]} 13. Bd3 {[%clk 0:02:19]}  Nf6 {[%clk 0:01:54]} 14. e5 {[%clk 0:02:13]}  dxe5 {[%clk 0:01:52]} 15. dxe5 {[%clk 0:02:11]}  Nd5 {[%clk 0:01:47]} 16. Ne4 {[%clk 0:01:26]}  O-O {[%clk 0:01:38]} 17. Bg5 {[%clk 0:01:26]}  Qb4 {[%clk 0:01:32]} 18. Qc2 {[%clk 0:01:26]}  h6 {[%clk 0:01:15]} 19. Bd2 {[%clk 0:01:16]}  Qa3 {[%clk 0:01:11]} 20. Rab1 {[%clk 0:00:58]}  Bg4 {[%clk 0:01:09]} 21. Nd6 {[%clk 0:00:38]}  Bxf3 {[%clk 0:01:07]} 22. gxf3 {[%clk 0:00:39]}  Bc7 {[%clk 0:00:33]} 23. Kh1 {[%clk 0:00:10]}  c5 {[%clk 0:00:15]} 24. Rg1 {[%clk 0:00:09]}  Kh8 {[%clk 0:00:16]} 25. Bxh6 {[%clk 0:00:06]}  gxh6 {[%clk 0:00:05]} 26. Qd2 {[%clk 0:00:07]}  Nf4 {[%clk 0:00:06]} 27. Qxf4 {[%clk 0:00:06]}  Qxd3 {[%clk 0:00:05]} 28. Qf6+ {[%clk 0:00:06]}  Kh7 {[%clk 0:00:06]} 29. Qg7# {[%clk 0:00:07]} 1-0


[Site "https://www.chess.com"]

[Event "Titled Tuesday Blitz February 22 Early 2022"]
[White "Ambartsumova, Karina"]
[Black "Erdogdu, Mert"]
[WhiteFideId "4166299"]
[BlackFideId "6301495"]
[WhiteElo "2262"]
[BlackElo "2485"]
[Result "0-1"]
[Round "11"]
[TimeControl "180+1"]
[Date "2022.02.22"]
[WhiteClock "0:00:02"]
[BlackClock "0:00:18"]

1. c4 {[%clk 0:03:00]}  e6 {[%clk 0:03:00]} 2. Nf3 {[%clk 0:02:58]}  d5 {[%clk 0:03:00]} 3. g3 {[%clk 0:02:59]}  c5 {[%clk 0:03:00]} 4. Bg2 {[%clk 0:02:56]}  Nf6 {[%clk 0:02:53]} 5. O-O {[%clk 0:02:54]}  Nc6 {[%clk 0:02:53]} 6. b3 {[%clk 0:02:50]}  Be7 {[%clk 0:02:45]} 7. e3 {[%clk 0:02:48]}  O-O {[%clk 0:02:45]} 8. Bb2 {[%clk 0:02:41]}  b6 {[%clk 0:02:43]} 9. Nc3 {[%clk 0:02:34]}  Ba6 {[%clk 0:02:42]} 10. Qe2 {[%clk 0:02:15]}  Re8 {[%clk 0:02:27]} 11. Rfd1 {[%clk 0:02:07]}  Rc8 {[%clk 0:02:18]} 12. Nb5 {[%clk 0:02:01]}  Qd7 {[%clk 0:02:03]} 13. Rac1 {[%clk 0:01:48]}  Red8 {[%clk 0:02:03]} 14. d4 {[%clk 0:01:45]}  cxd4 {[%clk 0:02:02]} 15. exd4 {[%clk 0:01:38]}  Qe8 {[%clk 0:01:54]} 16. Ne5 {[%clk 0:01:34]}  Na5 {[%clk 0:01:20]} 17. Nxa7 {[%clk 0:01:29]}  Ra8 {[%clk 0:01:17]} 18. Nb5 {[%clk 0:01:27]}  dxc4 {[%clk 0:01:16]} 19. Nc7 {[%clk 0:01:25]}  c3 {[%clk 0:01:11]} 20. Nxa6 {[%clk 0:00:55]}  cxb2 {[%clk 0:01:09]} 21. Rb1 {[%clk 0:00:46]}  Rac8 {[%clk 0:01:00]} 22. Bb7 {[%clk 0:00:45]}  Nxb7 {[%clk 0:00:59]} 23. Rxb2 {[%clk 0:00:39]}  Nd6 {[%clk 0:00:56]} 24. Nb4 {[%clk 0:00:32]}  Nf5 {[%clk 0:00:52]} 25. Nc2 {[%clk 0:00:22]}  Nd5 {[%clk 0:00:46]} 26. Qg4 {[%clk 0:00:17]}  Bf6 {[%clk 0:00:34]} 27. Nc4 {[%clk 0:00:14]}  b5 {[%clk 0:00:31]} 28. Ne5 {[%clk 0:00:14]}  Bxe5 {[%clk 0:00:30]} 29. dxe5 {[%clk 0:00:15]}  b4 {[%clk 0:00:20]} 30. Re1 {[%clk 0:00:11]}  Rc3 {[%clk 0:00:19]} 31. Nxb4 {[%clk 0:00:10]}  Nxb4 {[%clk 0:00:19]} 32. Qxb4 {[%clk 0:00:11]}  Rcd3 {[%clk 0:00:19]} 33. Rbb1 {[%clk 0:00:10]}  Nd4 {[%clk 0:00:19]} 34. Re4 {[%clk 0:00:04]}  Nf3+ {[%clk 0:00:17]} 35. Kg2 {[%clk 0:00:04]}  Nd2 {[%clk 0:00:18]} 36. Re2 {[%clk 0:00:02]}  Nxb1 {[%clk 0:00:18]} 0-1


[Site "https://www.chess.com"]

[Event "Titled Tuesday Blitz February 22 Early 2022"]
[White "Berezin, Viktor"]
[Black "Kozak, Alexander"]
[WhiteFideId "14107872"]
[BlackFideId "4135881"]
[WhiteElo "2310"]
[BlackElo "2251"]
[Result "1-0"]
[Round "11"]
[TimeControl "180+1"]
[Date "2022.02.22"]
[WhiteClock "0:00:17"]
[BlackClock "0:00:04"]

1. d4 {[%clk 0:02:57]}  g6 {[%clk 0:02:54]} 2. Nf3 {[%clk 0:02:56]}  Bg7 {[%clk 0:02:55]} 3. g3 {[%clk 0:02:55]}  d6 {[%clk 0:02:56]} 4. Bg2 {[%clk 0:02:54]}  Nd7 {[%clk 0:02:56]} 5. O-O {[%clk 0:02:53]}  e5 {[%clk 0:02:57]} 6. c4 {[%clk 0:02:50]}  Ne7 {[%clk 0:02:56]} 7. Nc3 {[%clk 0:02:49]}  O-O {[%clk 0:02:55]} 8. e4 {[%clk 0:02:48]}  h6 {[%clk 0:02:53]} 9. d5 {[%clk 0:02:40]}  f5 {[%clk 0:02:50]} 10. Ne1 {[%clk 0:02:38]}  fxe4 {[%clk 0:02:43]} 11. Nxe4 {[%clk 0:02:31]}  Nf6 {[%clk 0:02:44]} 12. Nc2 {[%clk 0:02:28]}  Nxe4 {[%clk 0:02:43]} 13. Bxe4 {[%clk 0:02:28]}  Bf5 {[%clk 0:02:43]} 14. Bg2 {[%clk 0:02:25]}  Bxc2 {[%clk 0:02:40]} 15. Qxc2 {[%clk 0:02:24]}  Nf5 {[%clk 0:02:40]} 16. Bd2 {[%clk 0:02:21]}  Nd4 {[%clk 0:02:38]} 17. Qd3 {[%clk 0:02:19]}  g5 {[%clk 0:02:38]} 18. Bc3 {[%clk 0:02:18]}  Qd7 {[%clk 0:02:23]} 19. Bxd4 {[%clk 0:02:14]}  exd4 {[%clk 0:02:22]} 20. Rae1 {[%clk 0:02:10]}  Be5 {[%clk 0:02:22]} 21. f4 {[%clk 0:01:47]}  gxf4 {[%clk 0:02:20]} 22. gxf4 {[%clk 0:01:45]}  Bxf4 {[%clk 0:01:54]} 23. Qxd4 {[%clk 0:01:39]}  Qg4 {[%clk 0:01:47]} 24. Kh1 {[%clk 0:01:34]}  Qh4 {[%clk 0:01:46]} 25. h3 {[%clk 0:01:18]}  Qg3 {[%clk 0:01:45]} 26. Qg1 {[%clk 0:01:17]}  Kh8 {[%clk 0:01:43]} 27. Rf3 {[%clk 0:01:14]}  Qh4 {[%clk 0:01:42]} 28. Ref1 {[%clk 0:01:12]}  Rf6 {[%clk 0:01:40]} 29. Qd4 {[%clk 0:01:06]}  Rf8 {[%clk 0:00:04]} 30. Rxf4 {[%clk 0:00:17]} 1-0


[Site "https://www.chess.com"]

[Event "Titled Tuesday Blitz February 22 Early 2022"]
[White "Bodnar, Nikolay"]
[Black "Manelyuk, Daniil"]
[WhiteFideId "14106469"]
[BlackFideId "44173920"]
[WhiteElo "2296"]
[BlackElo "2222"]
[Result "1/2-1/2"]
[Round "11"]
[TimeControl "180+1"]
[Date "2022.02.22"]
[WhiteClock "0:01:38"]
[BlackClock "0:00:11"]

1. e4 {[%clk 0:03:00]}  e6 {[%clk 0:02:58]} 2. d4 {[%clk 0:03:00]}  d5 {[%clk 0:02:57]} 3. Nc3 {[%clk 0:03:01]}  Bb4 {[%clk 0:02:56]} 4. e5 {[%clk 0:03:01]}  c5 {[%clk 0:02:56]} 5. a3 {[%clk 0:03:02]}  Bxc3+ {[%clk 0:02:55]} 6. bxc3 {[%clk 0:03:03]}  Ne7 {[%clk 0:02:55]} 7. h4 {[%clk 0:03:03]}  b6 {[%clk 0:02:48]} 8. h5 {[%clk 0:03:01]}  h6 {[%clk 0:02:46]} 9. Bb5+ {[%clk 0:02:56]}  Bd7 {[%clk 0:02:45]} 10. a4 {[%clk 0:02:57]}  a6 {[%clk 0:02:44]} 11. Bd3 {[%clk 0:02:52]}  Qc7 {[%clk 0:02:42]} 12. Nf3 {[%clk 0:02:51]}  Nbc6 {[%clk 0:02:39]} 13. Ba3 {[%clk 0:02:42]}  Na5 {[%clk 0:02:36]} 14. Bc1 {[%clk 0:02:32]}  O-O {[%clk 0:02:05]} 15. O-O {[%clk 0:02:32]}  c4 {[%clk 0:02:03]} 16. Be2 {[%clk 0:02:32]}  f5 {[%clk 0:02:02]} 17. Nh4 {[%clk 0:02:24]}  b5 {[%clk 0:01:58]} 18. Ba3 {[%clk 0:02:22]}  Rf7 {[%clk 0:01:56]} 19. Ng6 {[%clk 0:02:18]}  Be8 {[%clk 0:01:47]} 20. Nxe7+ {[%clk 0:02:16]}  Rxe7 {[%clk 0:01:48]} 21. Bxe7 {[%clk 0:02:16]}  Qxe7 {[%clk 0:01:49]} 22. axb5 {[%clk 0:02:15]}  axb5 {[%clk 0:01:49]} 23. Ra2 {[%clk 0:02:12]}  Bc6 {[%clk 0:01:09]} 24. Qd2 {[%clk 0:02:03]}  Ra6 {[%clk 0:00:55]} 25. Rfa1 {[%clk 0:02:02]}  Qa7 {[%clk 0:00:52]} 26. Qc1 {[%clk 0:01:58]}  Bb7 {[%clk 0:00:37]} 27. Qb2 {[%clk 0:01:55]}  Nc6 {[%clk 0:00:32]} 28. Rxa6 {[%clk 0:01:56]}  Bxa6 {[%clk 0:00:33]} 29. Qa3 {[%clk 0:01:55]}  Nb8 {[%clk 0:00:32]} 30. Qd6 {[%clk 0:01:55]}  Kf7 {[%clk 0:00:31]} 31. g4 {[%clk 0:01:51]}  fxg4 {[%clk 0:00:18]} 32. Bxg4 {[%clk 0:01:51]}  Qe7 {[%clk 0:00:18]} 33. Qxb8 {[%clk 0:01:45]}  Qg5 {[%clk 0:00:18]} 34. f3 {[%clk 0:01:41]}  Qe3+ {[%clk 0:00:15]} 35. Kg2 {[%clk 0:01:41]}  Qd2+ {[%clk 0:00:12]} 36. Kg3 {[%clk 0:01:41]}  Qxc3 {[%clk 0:00:12]} 37. Rxa6 {[%clk 0:01:40]}  Qe1+ {[%clk 0:00:11]} 38. Kg2 {[%clk 0:01:33]}  Qe2+ {[%clk 0:00:11]} 39. Kh3 {[%clk 0:01:34]}  Qf1+ {[%clk 0:00:11]} 40. Kg3 {[%clk 0:01:34]}  Qg1+ {[%clk 0:00:10]} 41. Kf4 {[%clk 0:01:34]}  Qc1+ {[%clk 0:00:10]} 42. Kg3 {[%clk 0:01:35]}  Qg1+ {[%clk 0:00:10]} 43. Kh4 {[%clk 0:01:36]}  Qf2+ {[%clk 0:00:10]} 44. Kh3 {[%clk 0:01:36]}  Qf1+ {[%clk 0:00:10]} 45. Kh2 {[%clk 0:01:37]}  Qf2+ {[%clk 0:00:10]} 46. Kh1 {[%clk 0:01:37]}  Qf1+ {[%clk 0:00:11]} 47. Kh2 {[%clk 0:01:38]}  Qf2+ {[%clk 0:00:11]} 48. Kh3 {[%clk 0:01:38]}  Qf1+ {[%clk 0:00:11]} 1/2-1/2


[Site "https://www.chess.com"]

[Event "Titled Tuesday Blitz February 22 Early 2022"]
[White "Bortnyk, Olexandr"]
[Black "Priasmoro, Novendra"]
[WhiteFideId "14120828"]
[BlackFideId "7105029"]
[WhiteElo "2723"]
[BlackElo "2309"]
[Result "1-0"]
[Round "11"]
[TimeControl "180+1"]
[Date "2022.02.22"]
[WhiteClock "0:00:04"]
[BlackClock "0:00:07"]

1. e4 {[%clk 0:02:59]}  e5 {[%clk 0:02:58]} 2. Bc4 {[%clk 0:02:54]}  Nf6 {[%clk 0:02:57]} 3. d3 {[%clk 0:02:54]}  c6 {[%clk 0:02:56]} 4. Nf3 {[%clk 0:02:50]}  d5 {[%clk 0:02:56]} 5. Bb3 {[%clk 0:02:50]}  Bd6 {[%clk 0:02:57]} 6. Nc3 {[%clk 0:02:47]}  O-O {[%clk 0:02:53]} 7. O-O {[%clk 0:02:37]}  dxe4 {[%clk 0:02:48]} 8. Nxe4 {[%clk 0:02:32]}  Nxe4 {[%clk 0:02:46]} 9. dxe4 {[%clk 0:02:33]}  h6 {[%clk 0:02:42]} 10. h3 {[%clk 0:02:30]}  Qe7 {[%clk 0:02:42]} 11. Qe2 {[%clk 0:02:26]}  Be6 {[%clk 0:02:42]} 12. Rd1 {[%clk 0:02:25]}  Nd7 {[%clk 0:02:42]} 13. Bxe6 {[%clk 0:02:22]}  Qxe6 {[%clk 0:02:42]} 14. Qd3 {[%clk 0:02:16]}  Be7 {[%clk 0:02:14]} 15. Be3 {[%clk 0:01:54]}  Rfd8 {[%clk 0:02:01]} 16. Qc3 {[%clk 0:01:52]}  b6 {[%clk 0:01:51]} 17. Rd3 {[%clk 0:01:47]}  Nf6 {[%clk 0:01:51]} 18. Qxe5 {[%clk 0:01:43]}  Nxe4 {[%clk 0:01:48]} 19. Qxe6 {[%clk 0:01:40]}  fxe6 {[%clk 0:01:49]} 20. Nd4 {[%clk 0:01:40]}  Nc5 {[%clk 0:01:43]} 21. Rdd1 {[%clk 0:01:13]}  Rac8 {[%clk 0:01:43]} 22. b4 {[%clk 0:01:05]}  Ne4 {[%clk 0:01:34]} 23. Nxe6 {[%clk 0:01:05]}  Rxd1+ {[%clk 0:01:34]} 24. Rxd1 {[%clk 0:01:06]}  Kf7 {[%clk 0:01:26]} 25. Nf4 {[%clk 0:01:05]}  Rc7 {[%clk 0:01:19]} 26. a3 {[%clk 0:00:52]}  g5 {[%clk 0:01:19]} 27. Ne2 {[%clk 0:00:50]}  c5 {[%clk 0:01:18]} 28. b5 {[%clk 0:00:40]}  Nd6 {[%clk 0:01:13]} 29. a4 {[%clk 0:00:39]}  Nc4 {[%clk 0:01:13]} 30. Bc1 {[%clk 0:00:36]}  Bf6 {[%clk 0:01:14]} 31. Kf1 {[%clk 0:00:33]}  Re7 {[%clk 0:01:11]} 32. Ng3 {[%clk 0:00:33]}  Kg6 {[%clk 0:01:10]} 33. f3 {[%clk 0:00:26]}  Bb2 {[%clk 0:01:08]} 34. Bxb2 {[%clk 0:00:19]}  Nxb2 {[%clk 0:01:04]} 35. Rd6+ {[%clk 0:00:20]}  Kf7 {[%clk 0:01:05]} 36. Rxh6 {[%clk 0:00:18]}  Nxa4 {[%clk 0:01:02]} 37. Ne4 {[%clk 0:00:17]}  Kg7 {[%clk 0:00:55]} 38. Rd6 {[%clk 0:00:09]}  Nb2 {[%clk 0:00:54]} 39. Rd5 {[%clk 0:00:04]}  Kh6 {[%clk 0:00:51]} 40. Rd6+ {[%clk 0:00:05]}  Kg7 {[%clk 0:00:51]} 41. Rd5 {[%clk 0:00:05]}  Kh6 {[%clk 0:00:51]} 42. Kf2 {[%clk 0:00:03]}  Nc4 {[%clk 0:00:50]} 43. Rd8 {[%clk 0:00:03]}  Na3 {[%clk 0:00:49]} 44. Rh8+ {[%clk 0:00:02]}  Kg7 {[%clk 0:00:49]} 45. Rh5 {[%clk 0:00:03]}  Nxb5 {[%clk 0:00:48]} 46. Rxg5+ {[%clk 0:00:03]}  Kh6 {[%clk 0:00:49]} 47. h4 {[%clk 0:00:03]}  Nd4 {[%clk 0:00:49]} 48. c3 {[%clk 0:00:04]}  Ne6 {[%clk 0:00:47]} 49. Re5 {[%clk 0:00:04]}  Kg6 {[%clk 0:00:42]} 50. h5+ {[%clk 0:00:04]}  Kf7 {[%clk 0:00:41]} 51. g4 {[%clk 0:00:03]}  Rd7 {[%clk 0:00:41]} 52. h6 {[%clk 0:00:03]}  Nf8 {[%clk 0:00:39]} 53. Rf5+ {[%clk 0:00:03]}  Ke7 {[%clk 0:00:38]} 54. Nf6 {[%clk 0:00:02]}  Rd2+ {[%clk 0:00:37]} 55. Kg3 {[%clk 0:00:03]}  Rd1 {[%clk 0:00:29]} 56. Ng8+ {[%clk 0:00:03]}  Ke8 {[%clk 0:00:29]} 57. Nf6+ {[%clk 0:00:03]}  Ke7 {[%clk 0:00:29]} 58. g5 {[%clk 0:00:04]}  Rg1+ {[%clk 0:00:28]} 59. Kh2 {[%clk 0:00:04]}  Rf1 {[%clk 0:00:28]} 60. Kg2 {[%clk 0:00:04]}  Rc1 {[%clk 0:00:28]} 61. Nd5+ {[%clk 0:00:04]}  Ke8 {[%clk 0:00:28]} 62. Nf6+ {[%clk 0:00:03]}  Ke7 {[%clk 0:00:28]} 63. h7 {[%clk 0:00:04]}  Ng6 {[%clk 0:00:28]} 64. Nd5+ {[%clk 0:00:03]}  Ke8 {[%clk 0:00:29]} 65. Nf4 {[%clk 0:00:04]}  Nh4+ {[%clk 0:00:26]} 66. Kf2 {[%clk 0:00:02]}  Rc2+ {[%clk 0:00:26]} 67. Kf1 {[%clk 0:00:02]}  Rc1+ {[%clk 0:00:22]} 68. Ke2 {[%clk 0:00:02]}  Nxf5 {[%clk 0:00:07]} 69. h8=Q+ {[%clk 0:00:02]}  Kd7 {[%clk 0:00:08]} 70. Qh7+ {[%clk 0:00:03]}  Ne7 {[%clk 0:00:09]} 71. Nd5 {[%clk 0:00:03]}  Rc2+ {[%clk 0:00:04]} 72. Qxc2 {[%clk 0:00:03]}  Nxd5 {[%clk 0:00:05]} 73. Qh7+ {[%clk 0:00:02]}  Kd6 {[%clk 0:00:05]} 74. Qxa7 {[%clk 0:00:02]}  b5 {[%clk 0:00:03]} 75. Qa6+ {[%clk 0:00:02]}  Ke5 {[%clk 0:00:04]} 76. Kd2 {[%clk 0:00:02]}  b4 {[%clk 0:00:04]} 77. cxb4 {[%clk 0:00:03]}  Nxb4 {[%clk 0:00:05]} 78. Qc4 {[%clk 0:00:03]}  Kd6 {[%clk 0:00:06]} 79. g6 {[%clk 0:00:03]}  Nd5 {[%clk 0:00:06]} 80. Qxd5+ {[%clk 0:00:03]}  Kxd5 {[%clk 0:00:07]} 81. g7 {[%clk 0:00:04]} 1-0


[Site "https://www.chess.com"]

[Event "Titled Tuesday Blitz February 22 Early 2022"]
[White "Budrewicz, Krzysztof"]
[Black "Petrosyan, Manuel"]
[WhiteFideId "1127950"]
[BlackFideId "13300857"]
[WhiteElo "2248"]
[BlackElo "2592"]
[Result "0-1"]
[Round "11"]
[TimeControl "180+1"]
[Date "2022.02.22"]
[WhiteClock "0:01:55"]
[BlackClock "0:02:20"]

1. d4 {[%clk 0:03:00]}  b6 {[%clk 0:02:56]} 2. c4 {[%clk 0:02:59]}  Bb7 {[%clk 0:02:56]} 3. Nc3 {[%clk 0:02:59]}  Nf6 {[%clk 0:02:55]} 4. f3 {[%clk 0:02:58]}  d5 {[%clk 0:02:53]} 5. cxd5 {[%clk 0:02:58]}  Nxd5 {[%clk 0:02:53]} 6. e4 {[%clk 0:02:59]}  Nxc3 {[%clk 0:02:54]} 7. bxc3 {[%clk 0:03:00]}  e6 {[%clk 0:02:54]} 8. Be3 {[%clk 0:03:00]}  Be7 {[%clk 0:02:53]} 9. Bd3 {[%clk 0:02:58]}  O-O {[%clk 0:02:53]} 10. Ne2 {[%clk 0:02:58]}  c5 {[%clk 0:02:54]} 11. dxc5 {[%clk 0:02:56]}  Bxc5 {[%clk 0:02:43]} 12. Bxc5 {[%clk 0:02:55]}  bxc5 {[%clk 0:02:44]} 13. O-O {[%clk 0:02:55]}  Nd7 {[%clk 0:02:44]} 14. Kh1 {[%clk 0:02:37]}  Ne5 {[%clk 0:02:41]} 15. Bb5 {[%clk 0:02:34]}  Qa5 {[%clk 0:02:38]} 16. Qa4 {[%clk 0:02:33]}  Qxa4 {[%clk 0:02:37]} 17. Bxa4 {[%clk 0:02:34]}  Ba6 {[%clk 0:02:36]} 18. Bd1 {[%clk 0:02:10]}  Rfd8 {[%clk 0:02:33]} 19. f4 {[%clk 0:02:01]}  Ng4 {[%clk 0:02:24]} 20. Rf3 {[%clk 0:01:59]}  Rxd1+ {[%clk 0:02:20]} 21. Rxd1 {[%clk 0:01:55]}  Bxe2 {[%clk 0:02:20]} 0-1


[Site "https://www.chess.com"]